[Event "Late-Titled-Tuesday-Blitz-April-23-2024"]
[Site "Chess.com"]
[Date "2024.04.23"]
[Round "11"]
[White "Bykov_Egor"]
[Black "ChessBrainiacOnTwitch"]
[Result "1-0"]
[WhiteElo "2632"]
[BlackElo "2773"]
[TimeControl "180+1"]
[EndTime "16:09:27 PDT"]
[Termination "Bykov_Egor won by checkmate"]

1. d4 {[%clk 0:02:54.9]} 1... Nf6 {[%clk 0:02:59.5]} 2. c4 {[%clk 0:02:54.1]}
2... e6 {[%clk 0:02:56.9]} 3. Nc3 {[%clk 0:02:53.6]} 3... Bb4 {[%clk 0:02:56.6]}
4. e3 {[%clk 0:02:53.7]} 4... O-O {[%clk 0:02:57.2]} 5. Bd3 {[%clk 0:02:53.6]}
5... d5 {[%clk 0:02:56.9]} 6. Nf3 {[%clk 0:02:53]} 6... b6 {[%clk 0:02:55.3]} 7.
cxd5 {[%clk 0:02:52.1]} 7... exd5 {[%clk 0:02:56.2]} 8. O-O {[%clk 0:02:51.9]}
8... Bb7 {[%clk 0:02:56.8]} 9. a3 {[%clk 0:02:52.2]} 9... Be7 {[%clk 0:02:55.2]}
10. b4 {[%clk 0:02:51.3]} 10... Nbd7 {[%clk 0:02:55.7]} 11. Qb3 {[%clk
0:02:49.3]} 11... Rb8 {[%clk 0:02:53.5]} 12. b5 {[%clk 0:02:48.6]} 12... c5
{[%clk 0:02:50.2]} 13. bxc6 {[%clk 0:02:46.9]} 13... Bxc6 {[%clk 0:02:50.8]} 14.
a4 {[%clk 0:02:27.1]} 14... Re8 {[%clk 0:02:45.9]} 15. Ba3 {[%clk 0:02:20.2]}
15... Rc8 {[%clk 0:02:22.4]} 16. Ba6 {[%clk 0:02:10.3]} 16... Ra8 {[%clk
0:02:15.1]} 17. Rfc1 {[%clk 0:02:04.9]} 17... Bxa3 {[%clk 0:02:08.4]} 18. Qxa3
{[%clk 0:02:05.8]} 18... Nb8 {[%clk 0:02:01.3]} 19. Bd3 {[%clk 0:01:50.4]} 19...
Ne4 {[%clk 0:01:54]} 20. Ne5 {[%clk 0:01:35.2]} 20... Bb7 {[%clk 0:01:50]} 21.
Nxe4 {[%clk 0:01:24.2]} 21... dxe4 {[%clk 0:01:50.9]} 22. Bc4 {[%clk 0:01:20.4]}
22... Bd5 {[%clk 0:01:50.9]} 23. Qb3 {[%clk 0:01:17.7]} 23... Bxc4 {[%clk
0:01:49.3]} 24. Qxc4 {[%clk 0:01:18.2]} 24... Qe7 {[%clk 0:01:38.9]} 25. Qd5
{[%clk 0:01:06.4]} 25... Na6 {[%clk 0:01:38.6]} 26. Qxe4 {[%clk 0:01:06.5]}
26... Nb4 {[%clk 0:01:35.6]} 27. Qf5 {[%clk 0:00:47.6]} 27... h6 {[%clk
0:01:30.9]} 28. a5 {[%clk 0:00:41]} 28... g6 {[%clk 0:01:21.4]} 29. Qd7 {[%clk
0:00:30.6]} 29... Qf6 {[%clk 0:00:58.2]} 30. axb6 {[%clk 0:00:23.8]} 30... axb6
{[%clk 0:00:59.1]} 31. Qb5 {[%clk 0:00:14.2]} 31... Nc2 {[%clk 0:00:44.7]} 32.
Rxa8 {[%clk 0:00:11.7]} 32... Rxa8 {[%clk 0:00:45.6]} 33. Nd7 {[%clk 0:00:09.3]}
33... Qd6 {[%clk 0:00:35.6]} 34. Nxb6 {[%clk 0:00:09.2]} 34... Qa3 {[%clk
0:00:31]} 35. Rxc2 {[%clk 0:00:07.3]} 35... Qb3 {[%clk 0:00:18.8]} 36. Qf1
{[%clk 0:00:03.2]} 36... Qxb6 {[%clk 0:00:15.1]} 37. Rc1 {[%clk 0:00:03.5]}
37... Ra2 {[%clk 0:00:14.8]} 38. g3 {[%clk 0:00:04]} 38... Qb2 {[%clk
0:00:14.8]} 39. Qe1 {[%clk 0:00:04]} 39... h5 {[%clk 0:00:14.5]} 40. h4 {[%clk
0:00:03.3]} 40... Kh7 {[%clk 0:00:14.7]} 41. Rd1 {[%clk 0:00:03.6]} 41... Qc2
{[%clk 0:00:14.7]} 42. d5 {[%clk 0:00:04.2]} 42... Ra8 {[%clk 0:00:15.2]} 43. d6
{[%clk 0:00:04.8]} 43... Rd8 {[%clk 0:00:15.9]} 44. Qd2 {[%clk 0:00:04.6]} 44...
Qe4 {[%clk 0:00:14.7]} 45. Qd4 {[%clk 0:00:04.2]} 45... Qe6 {[%clk 0:00:14.5]}
46. Qd5 {[%clk 0:00:04.4]} 46... Qf6 {[%clk 0:00:14]} 47. Kg2 {[%clk 0:00:04.5]}
47... Rd7 {[%clk 0:00:12.9]} 48. e4 {[%clk 0:00:05]} 48... Qd8 {[%clk
0:00:09.6]} 49. e5 {[%clk 0:00:05.3]} 49... Qe8 {[%clk 0:00:10.3]} 50. Qe4
{[%clk 0:00:04.5]} 50... Qe6 {[%clk 0:00:09.6]} 51. Qd5 {[%clk 0:00:04.7]} 51...
Qe8 {[%clk 0:00:09.9]} 52. Rd3 {[%clk 0:00:05]} 52... Qb8 {[%clk 0:00:08]} 53.
Rf3 {[%clk 0:00:04.1]} 53... Qe8 {[%clk 0:00:08.2]} 54. Rc3 {[%clk 0:00:04.3]}
54... Qd8 {[%clk 0:00:08.3]} 55. Rc6 {[%clk 0:00:04.4]} 55... Qe8 {[%clk
0:00:08.8]} 56. Qc5 {[%clk 0:00:04.9]} 56... Qe6 {[%clk 0:00:08.8]} 57. Rc7
{[%clk 0:00:05.5]} 57... Rd8 {[%clk 0:00:07.4]} 58. Qc4 {[%clk 0:00:05]} 58...
Qxc4 {[%clk 0:00:02]} 59. Rxc4 {[%clk 0:00:05.9]} 59... Kg7 {[%clk 0:00:02.9]}
60. f4 {[%clk 0:00:05.7]} 60... Kf8 {[%clk 0:00:03]} 61. Kf3 {[%clk 0:00:06]}
61... Ke8 {[%clk 0:00:03.4]} 62. Ke4 {[%clk 0:00:06.2]} 62... Ra8 {[%clk
0:00:04.3]} 63. Kd5 {[%clk 0:00:05.9]} 63... Ra5+ {[%clk 0:00:04.8]} 64. Rc5
{[%clk 0:00:06.2]} 64... Ra3 {[%clk 0:00:05.2]} 65. Rc8+ {[%clk 0:00:06.5]}
65... Kd7 {[%clk 0:00:05.2]} 66. Rc7+ {[%clk 0:00:06.5]} 66... Ke8 {[%clk
0:00:06.1]} 67. Re7+ {[%clk 0:00:07]} 67... Kf8 {[%clk 0:00:05.4]} 68. Rb7
{[%clk 0:00:07.6]} 68... Ke8 {[%clk 0:00:04.4]} 69. Rb8+ {[%clk 0:00:07.8]}
69... Kd7 {[%clk 0:00:04.6]} 70. Rf8 {[%clk 0:00:08.3]} 70... Rd3+ {[%clk
0:00:03.5]} 71. Ke4 {[%clk 0:00:08.4]} 71... Rxg3 {[%clk 0:00:04]} 72. Rxf7+
{[%clk 0:00:08.8]} 72... Ke8 {[%clk 0:00:04.7]} 73. Re7+ {[%clk 0:00:09]} 73...
Kd8 {[%clk 0:00:05]} 74. Rg7 {[%clk 0:00:08.6]} 74... Rg1 {[%clk 0:00:05.2]} 75.
e6 {[%clk 0:00:08.8]} 75... Re1+ {[%clk 0:00:05]} 76. Kd5 {[%clk 0:00:09.3]}
76... Rd1+ {[%clk 0:00:05.7]} 77. Ke5 {[%clk 0:00:09.8]} 77... Kc8 {[%clk
0:00:05.2]} 78. Rg8+ {[%clk 0:00:09.8]} 78... Kb7 {[%clk 0:00:06]} 79. e7 {[%clk
0:00:10.7]} 79... g5 {[%clk 0:00:06.2]} 80. hxg5 {[%clk 0:00:10.7]} 80... Re1+
{[%clk 0:00:06.6]} 81. Kf5 {[%clk 0:00:10.6]} 81... h4 {[%clk 0:00:07.5]} 82.
e8=Q {[%clk 0:00:10.8]} 82... Rxe8 {[%clk 0:00:08.3]} 83. Rxe8 {[%clk
0:00:11.3]} 83... h3 {[%clk 0:00:09.2]} 84. Rh8 {[%clk 0:00:11.9]} 84... h2
{[%clk 0:00:10.1]} 85. Rxh2 {[%clk 0:00:12.4]} 85... Kc6 {[%clk 0:00:11]} 86.
Rd2 {[%clk 0:00:12.7]} 86... Kd7 {[%clk 0:00:11.9]} 87. Kf6 {[%clk 0:00:12.4]}
87... Kd8 {[%clk 0:00:12.8]} 88. Ke6 {[%clk 0:00:12.9]} 88... Ke8 {[%clk
0:00:13.7]} 89. Rh2 {[%clk 0:00:12.7]} 89... Kd8 {[%clk 0:00:14.6]} 90. Rh8#
{[%clk 0:00:11.1]} 1-0

[Event "Late-Titled-Tuesday-Blitz-April-23-2024"]
[Site "Chess.com"]
[Date "2024.04.23"]
[Round "11"]
[White "BogdanDeac"]
[Black "Hamisandwich"]
[Result "1-0"]
[WhiteElo "3054"]
[BlackElo "2779"]
[TimeControl "180+1"]
[EndTime "16:09:30 PDT"]
[Termination "BogdanDeac won on time"]

1. e4 {[%clk 0:03:00.9]} 1... e6 {[%clk 0:03:00.2]} 2. Qe2 {[%clk 0:02:58.9]}
2... c5 {[%clk 0:02:56.6]} 3. Nf3 {[%clk 0:02:58.8]} 3... Nc6 {[%clk 0:02:53.3]}
4. c3 {[%clk 0:02:59.1]} 4... d5 {[%clk 0:02:47.9]} 5. exd5 {[%clk 0:02:52.8]}
5... Qxd5 {[%clk 0:02:48.8]} 6. g3 {[%clk 0:02:53.1]} 6... b6 {[%clk 0:02:27.8]}
7. Bg2 {[%clk 0:01:52]} 7... Bb7 {[%clk 0:02:27.1]} 8. Na3 {[%clk 0:01:52.6]}
8... Nf6 {[%clk 0:02:17.1]} 9. Nc4 {[%clk 0:01:50.9]} 9... Rc8 {[%clk
0:01:20.4]} 10. O-O {[%clk 0:01:45.1]} 10... Be7 {[%clk 0:01:12.2]} 11. Rd1
{[%clk 0:01:40.1]} 11... O-O {[%clk 0:01:09.5]} 12. d3 {[%clk 0:01:40.4]} 12...
Rfd8 {[%clk 0:01:04.8]} 13. a4 {[%clk 0:01:37]} 13... Ba8 {[%clk 0:00:57]} 14.
Bf4 {[%clk 0:01:31.7]} 14... h6 {[%clk 0:00:56.2]} 15. h4 {[%clk 0:01:30.5]}
15... Qh5 {[%clk 0:00:50.5]} 16. Re1 {[%clk 0:01:25.6]} 16... Nd5 {[%clk
0:00:40.7]} 17. Bd2 {[%clk 0:01:23.8]} 17... Bf6 {[%clk 0:00:41.1]} 18. Qf1
{[%clk 0:01:02.6]} 18... Nde7 {[%clk 0:00:34.6]} 19. Nh2 {[%clk 0:00:48.7]}
19... Ne5 {[%clk 0:00:09.2]} 20. Nxe5 {[%clk 0:00:35.9]} 20... Bxg2 {[%clk
0:00:08.5]} 21. Kxg2 {[%clk 0:00:30.9]} 21... Bxe5 {[%clk 0:00:09.1]} 22. g4
{[%clk 0:00:31.1]} 22... Qxh4 {[%clk 0:00:07.6]} 23. Rxe5 {[%clk 0:00:30.6]}
23... Ng6 {[%clk 0:00:08]} 24. Rh5 {[%clk 0:00:25]} 24... Qf6 {[%clk 0:00:08.1]}
25. Qe2 {[%clk 0:00:24.1]} 25... e5 {[%clk 0:00:06.7]} 26. Be3 {[%clk
0:00:11.2]} 26... Qc6+ {[%clk 0:00:06.6]} 27. Qf3 {[%clk 0:00:11.4]} 27... Rxd3
{[%clk 0:00:05.9]} 28. Qxc6 {[%clk 0:00:11.3]} 28... Rxc6 {[%clk 0:00:06.8]} 29.
g5 {[%clk 0:00:06.3]} 29... hxg5 {[%clk 0:00:05.5]} 30. Rxg5 {[%clk 0:00:06.9]}
30... Rcd6 {[%clk 0:00:03.8]} 31. Re1 {[%clk 0:00:04.9]} 31... Rd1 {[%clk
0:00:03.3]} 32. Rxd1 {[%clk 0:00:04.9]} 32... Rxd1 {[%clk 0:00:04.2]} 33. Nf3
{[%clk 0:00:04.6]} 33... Ra1 {[%clk 0:00:02.7]} 34. Nxe5 {[%clk 0:00:04.1]}
34... Nxe5 {[%clk 0:00:03.4]} 35. Rxe5 {[%clk 0:00:04.1]} 35... Rxa4 {[%clk
0:00:04.3]} 36. Re8+ {[%clk 0:00:04.5]} 36... Kh7 {[%clk 0:00:04.8]} 37. Re7
{[%clk 0:00:05.2]} 37... Kg6 {[%clk 0:00:05.4]} 38. Rb7 {[%clk 0:00:05.4]} 38...
Ra2 {[%clk 0:00:05.4]} 39. b4 {[%clk 0:00:05.3]} 39... cxb4 {[%clk 0:00:06.3]}
40. cxb4 {[%clk 0:00:06]} 40... Ra4 {[%clk 0:00:06.7]} 41. Bd2 {[%clk
0:00:06.4]} 41... Kf6 {[%clk 0:00:06.4]} 42. Bc3+ {[%clk 0:00:05.4]} 42... Ke6
{[%clk 0:00:07]} 43. Bxg7 {[%clk 0:00:04.8]} 43... Rxb4 {[%clk 0:00:06.4]} 44.
Bc3 {[%clk 0:00:05]} 44... Ra4 {[%clk 0:00:06.8]} 45. Kf1 {[%clk 0:00:05.1]}
45... Ra3 {[%clk 0:00:05.6]} 46. Bb4 {[%clk 0:00:04.6]} 46... Ra4 {[%clk
0:00:06.1]} 47. Bd2 {[%clk 0:00:04.7]} 47... Ra2 {[%clk 0:00:06.5]} 48. Ke2
{[%clk 0:00:04.9]} 48... Ra4 {[%clk 0:00:06.4]} 49. Kd3 {[%clk 0:00:04.8]} 49...
f5 {[%clk 0:00:06.8]} 50. f4 {[%clk 0:00:04.4]} 50... Ra3+ {[%clk 0:00:05.5]}
51. Bc3 {[%clk 0:00:04.6]} 51... Ra4 {[%clk 0:00:05.4]} 52. Be5 {[%clk
0:00:04.8]} 52... Ra3+ {[%clk 0:00:04]} 53. Kc4 {[%clk 0:00:04.7]} 53... Ra4+
{[%clk 0:00:04.3]} 54. Kb3 {[%clk 0:00:04.9]} 54... Ra5 {[%clk 0:00:03.1]} 55.
Rh7 {[%clk 0:00:04.8]} 55... Kd5 {[%clk 0:00:03.1]} 56. Rd7+ {[%clk 0:00:04.4]}
56... Ke4 {[%clk 0:00:03.1]} 57. Rd4+ {[%clk 0:00:04.4]} 57... Kf3 {[%clk
0:00:03.8]} 58. Rd6 {[%clk 0:00:03.6]} 58... Ke4 {[%clk 0:00:03.5]} 59. Rd7
{[%clk 0:00:03.8]} 59... Rb5+ {[%clk 0:00:03.4]} 60. Kc4 {[%clk 0:00:03.3]}
60... Ra5 {[%clk 0:00:04.3]} 61. Kb4 {[%clk 0:00:03.4]} 61... Ra2 {[%clk
0:00:03.9]} 62. Kb3 {[%clk 0:00:03.4]} 62... Ra5 {[%clk 0:00:04]} 63. Re7 {[%clk
0:00:03.8]} 63... Kf3 {[%clk 0:00:04.3]} 64. Bb8 {[%clk 0:00:03.8]} 64... Rb5+
{[%clk 0:00:04.5]} 65. Kc3 {[%clk 0:00:03.4]} 65... Ra5 {[%clk 0:00:05.2]} 66.
Rb7 {[%clk 0:00:03]} 66... Ra4 {[%clk 0:00:04.4]} 67. Kb3 {[%clk 0:00:02.9]}
67... Ra5 {[%clk 0:00:04.8]} 68. Be5 {[%clk 0:00:03.5]} 68... Ke4 {[%clk
0:00:04.5]} 69. Kb4 {[%clk 0:00:03]} 69... Kf3 {[%clk 0:00:04.5]} 70. Rh7 {[%clk
0:00:02.5]} 70... Ke4 {[%clk 0:00:05.1]} 71. Rh1 {[%clk 0:00:02.6]} 71... Ra2
{[%clk 0:00:05.3]} 72. Re1+ {[%clk 0:00:02.8]} 72... Kf3 {[%clk 0:00:05.7]} 73.
Kb3 {[%clk 0:00:03.1]} 73... Ra5 {[%clk 0:00:05.3]} 74. Bd6 {[%clk 0:00:03.6]}
74... Kg4 {[%clk 0:00:04.9]} 75. Re2 {[%clk 0:00:03.2]} 75... Kf3 {[%clk
0:00:05.3]} 76. Re5 {[%clk 0:00:03.3]} 76... Rxe5 {[%clk 0:00:02.7]} 77. fxe5
{[%clk 0:00:03.3]} 77... Ke4 {[%clk 0:00:03.3]} 78. e6 {[%clk 0:00:03.7]} 78...
Kd5 {[%clk 0:00:04.2]} 79. e7 {[%clk 0:00:04.3]} 79... Kxd6 {[%clk 0:00:05.1]}
80. e8=Q {[%clk 0:00:05.2]} 1-0